fUSD/lending_fUSD_20251204
["ID","MTS","AMOUNT","RATE_DAILY","PERIOD"]
[396243202,1764867040537,-500.0,0.00024898,2]
[396243203,1764867040546,-500.0,0.00024898,2]
[396243204,1764867040556,-500.0,0.00024898,2]
[396243205,1764867040565,-500.0,0.00024898,2]
[396243206,1764867040575,-500.0,0.00024898,2]
[396243207,1764867040584,-500.0,0.00024898,2]
[396243208,1764867040594,-500.0,0.00024898,2]
[396243209,1764867040603,-500.0,0.00024898,2]
[396243210,1764867040612,-508.16090162,0.00024898,2]
[396243211,1764867040622,-500.0,0.00024898,2]
[396243212,1764867040632,-500.0,0.00024898,2]
[396243213,1764867040641,-500.0,0.00024898,2]
[396243214,1764867040650,-583.80774659,0.00024898,2]
[396243215,1764867040659,-500.0,0.00024898,2]
[396243216,1764867040668,-500.0,0.00024898,2]
[396243217,1764867040677,-500.0,0.00024898,2]
[396243218,1764867040687,-500.0,0.00024898,2]
[396243219,1764867040697,-500.0,0.00024898,2]
[396243220,1764867040707,-500.0,0.00024898,2]
[396243221,1764867040718,-500.0,0.00024898,2]
[396243222,1764867040727,-637.51483659,0.00024898,2]
[396243223,1764867040737,-500.0,0.00024898,2]
[396243224,1764867040747,-500.0,0.00024898,2]
[396243225,1764867040756,-500.0,0.00024898,2]
[396243226,1764867040766,-500.0,0.00024898,2]
[396243227,1764867040775,-500.0,0.00024898,2]
[396243228,1764867040784,-500.0,0.00024898,2]
[396243229,1764867040794,-500.0,0.00024898,2]
[396243230,1764867040803,-500.0,0.00024898,2]
[396243231,1764867040812,-500.0,0.00024898,2]
[396243232,1764867040822,-500.0,0.00024898,2]
[396243233,1764867040832,-12004.1956904,0.000249,3]
[396243234,1764867041606,-2107.00000002,0.000249,3]
[396243235,1764867041618,-44111.81368888,0.000249,3]
[396243236,1764867041627,-151.0,0.00024941,7]
[396243237,1764867041637,-334.5472959,0.00024942,2]
[396243238,1764867041646,-298.26089446,0.00024942,2]
[396243239,1764867041655,-288.9,0.00024942,2]
[396243240,1764867041665,-151.0,0.00024943,2]
[396243241,1764867041674,-1900.0,0.00024944,2]
[396243242,1764867041683,-150.0,0.00025137,2]
[396243243,1764867041693,-150.0,0.00025137,2]
[396243244,1764867041703,-150.0,0.00025137,2]
[396243245,1764867041712,-150.0,0.00025137,2]
[396243246,1764867041722,-500.0,0.00025137,2]
[396243247,1764867041731,-500.0,0.00025137,2]
[396243248,1764867041745,-150.0,0.00025137,2]
[396243249,1764867041754,-150.0,0.00025137,2]
[396243250,1764867041763,-500.0,0.00025137,2]
[396243251,1764867041773,-500.0,0.00025137,2]
[396243252,1764867041782,-150.0,0.00025137,2]
[396243253,1764867041791,-500.0,0.00025137,2]
[396243254,1764867041802,-1256.57978181,0.00025144,2]
[396243255,1764867041812,-968.45866279,0.00025189,2]
[396243256,1764867041821,-189.0,0.00025274,2]
[396243257,1764867041831,-150.0,0.00025274,2]
[396243258,1764867041841,-150.0,0.00025274,2]
[396243259,1764867041855,-150.0,0.00025274,2]
[396243260,1764867041865,-500.0,0.00025274,2]
[396243261,1764867041874,-500.0,0.00025274,2]
[396243262,1764867041883,-196.06477237,0.00025274,2]
[396243263,1764867041895,-500.0,0.00025274,2]
[396243264,1764867041904,-500.0,0.00025274,2]
[396243265,1764867041913,-500.0,0.00025274,2]
[396243266,1764867041925,-150.0,0.00025411,2]
[396243267,1764867041935,-150.0,0.00025411,2]
[396243268,1764867041949,-252.54455981,0.00025411,2]
[396243269,1764867041958,-500.0,0.00025411,2]
[396243270,1764867041968,-500.0,0.00025411,2]
[396243271,1764867041978,-160.1827164,0.00025411,2]
[396243272,1764867041988,-550.0,0.00025411,2]
[396243273,1764867041999,-500.0,0.00025411,2]
[396243274,1764867042010,-1940.76697931,0.00025538,3]
[396243275,1764867042021,-150.0,0.00025548,2]
[396243276,1764867042030,-150.0,0.00025548,2]
[396243277,1764867042039,-170.0,0.00025548,2]
[396243278,1764867042050,-350.0,0.00025548,2]
[396243279,1764867042060,-350.0,0.00025548,2]
[396243280,1764867042070,-178.85092303,0.00025685,2]
[396243281,1764867042079,-299.0,0.00025685,2]
[396243282,1764867042089,-1449.98,0.0002575,2]
[396243283,1764867042098,-495.73759819,0.00025846,2]
[396243284,1764867042107,-420.6420041,0.00026311,2]
[396243285,1764867042117,-309.29654756,0.00026311,2]
[396243286,1764867042126,-196.51747058,0.00026755,11]
[396243287,1764867042138,-1256.57978181,0.00026833,2]
[396243288,1764867042148,-968.45866279,0.00026867,2]
[396243289,1764867042158,-610.0,0.00027359,2]
[396243290,1764867042168,-614.0,0.00027359,2]
[396243291,1764867042178,-1259.0,0.00027359,2]
[396243292,1764867042188,-253.0,0.00027359,2]
[396243293,1764867042197,-4706.0,0.00027359,2]
[396243294,1764867042207,-150.0,0.00027397,5]
[396243295,1764867042218,-531.47796382,0.00027588,2]
[396243296,1764867042227,-320.74051982,0.0002768,2]
[396243297,1764867042237,-165.69185679,0.00027682,2]
[396243298,1764867042247,-250.0,0.00027945,5]
[396243299,1764867042256,-350.0,0.00028493,5]
[396243300,1764867042266,-1256.57978181,0.00028522,2]
[396243301,1764867042275,-245.27751316,0.00028526,2]
[396243302,1764867042284,-968.45866279,0.00028544,2]
[396243303,1764867042294,-5399.92,0.00028731,2]
[396243304,1764867042304,-150.0,0.000288,4]
[396243305,1764867042314,-150.0,0.000288,4]
[396243306,1764867042323,-150.0,0.000288,4]
[396243307,1764867042333,-150.0,0.000288,4]
[396243308,1764867042342,-150.0,0.000288,4]
[396243309,1764867042352,-150.0,0.000288,4]
[396243310,1764867042361,-58.87395869,0.000288,4]
[396243311,1764867042373,-91.12604132,0.000288,4]
[396243312,1764867042383,-495.73759819,0.00028862,2]
[396243313,1764867042392,-150.0,0.00028999,20]
[396243314,1764867042401,-6547.86223675,0.00029,2]
[396243315,1764867042512,-543.74,0.00029,2]
[396243316,1764867042523,-904.51,0.00029,2]
[396243318,1764867042554,-300.0,0.00027397,2]
[396243320,1764867042564,-1991.63780174,0.00029,2]
[396243322,1764867042575,-274360.05296151,0.00029,2]
[396243323,1764867042586,-450.0,0.00029041,5]
[396243324,1764867042595,-332.60791905,0.00029049,2]
[396243325,1764867042605,-196.51747058,0.00029244,14]
[396243326,1764867042615,-550.0,0.00029589,5]
[396243327,1764867042625,-150.0,0.00029867,7]
[396243328,1764867042635,-150.0,0.0003,2]
[396243329,1764867042644,-297.09695169,0.00030137,5]
[396243330,1764867042654,-1256.57978181,0.00030211,2]
[396243331,1764867042664,-968.45866279,0.00030222,2]
[396243332,1764867042674,-500.0,0.00030356,14]
[396243333,1764867042683,-500.0,0.00030356,14]
[396243334,1764867042693,-610.0,0.00030359,2]
[396243335,1764867042702,-1259.0,0.00030359,2]
[396243336,1764867042714,-253.0,0.00030359,2]
[396243337,1764867042724,-4213.494,0.00030359,2]
[396243338,1764867042734,-150.0,0.000304,7]
[396243339,1764867042744,-531.47796382,0.00030405,2]
[396243340,1764867042754,-344.91441206,0.00030418,2]
[396243341,1764867042764,-2000.0,0.000308,2]
[396243342,1764867042774,-150.0,0.00030933,7]
[396243343,1764867042783,-150.0,0.00031,4]
[396243344,1764867042793,-950.35793141,0.0003104,2]
[396243345,1764867042803,-500.0,0.00031178,14]
[396243346,1764867042813,-224.54,0.000312,14]
[396243347,1764867042823,-1000.0,0.00031613,2]
[396243348,1764867042832,-355.76,0.00031726,2]
[396243349,1764867042843,-196.51747058,0.00031732,18]
[396243350,1764867042855,-200.0,0.00031744,2]
[396243351,1764867042865,-357.6762453,0.00031787,2]
[396243352,1764867042875,-495.73759819,0.00031877,2]
[396243353,1764867042885,-1000.0,0.00031887,2]
[396243354,1764867042895,-797.666,0.000319,120]
[396243355,1764867042904,-10000.0,0.000319,2]
[396243356,1764867042914,-151.0,0.000319,31]
[396243357,1764867042925,-151.000005,0.000319,31]
[396243358,1764867042935,-151.0,0.000319,31]
[396243359,1764867042945,-16424.05453541,0.000319,2]
[396243360,1764867042954,-968.45866279,0.000319,2]
[396243361,1764867042966,-1494.1315996,0.000319,2]
[396243362,1764867042976,-151.519449,0.000319,31]
[396243363,1764867042986,-151.0,0.000319,31]
[396243364,1764867042995,-151.0,0.000319,31]
[396243365,1764867043006,-3848.935369,0.000319,31]
[396243366,1764867043016,-151.0,0.000319,31]
[396243367,1764867043026,-151.0,0.000319,31]
[396243368,1764867043037,-187.00013486,0.000319,2]
[396243369,1764867043049,-152.80686,0.000319,31]
[396243370,1764867043060,-184.28285,0.000319,31]
[396243371,1764867043071,-3848.935369,0.000319,31]
[396243372,1764867043082,-3848.935369,0.000319,31]
[396243373,1764867043096,-3848.935369,0.000319,31]
[396243374,1764867043106,-151.0,0.000319,31]
[396243375,1764867043116,-151.0,0.000319,31]
[396243376,1764867043127,-151.0,0.000319,31]
[396243377,1764867043138,-174.227401,0.000319,31]
[396243378,1764867043148,-151.0,0.000319,31]
[396243382,1764867043158,-1256.57978181,0.000319,2]
[396243384,1764867043168,-153.431357,0.000319,31]
[396243385,1764867043177,-179.464399,0.000319,31]
[396243386,1764867043187,-179.464399,0.000319,31]
[396243387,1764867043197,-151.0,0.000319,31]
[396243389,1764867043207,-179.464399,0.000319,31]
[396243391,1764867043219,-151.0,0.000319,31]
[396243393,1764867043229,-151.0,0.000319,31]
[396243395,1764867043238,-151.0,0.000319,31]
[396243396,1764867043248,-179.464399,0.000319,31]
[396243397,1764867043258,-2055.0541279,0.00031951,2]
[396243398,1764867043267,-5706.8975358,0.00031951,2]
[396243399,1764867043278,-500.0,0.00031989,30]
[396243400,1764867043287,-500.0,0.00031989,30]
[396243401,1764867043298,-150.83,0.0003199,2]
[396243402,1764867043307,-150.83,0.0003199,2]
[396243404,1764867043317,-150.83,0.0003199,2]
[396243406,1764867043327,-150.83,0.0003199,2]
[396243407,1764867043337,-150.83,0.0003199,2]
[396243408,1764867043347,-150.83,0.0003199,2]
[396243409,1764867043357,-260.52392604,0.0003199,2]
[396243410,1764867043367,-260.52392604,0.0003199,2]
[396243412,1764867043376,-159.698734,0.00031999,31]
[396243414,1764867043386,-153.413684,0.00031999,31]
[396243415,1764867043395,-174.393232,0.00031999,31]
[396243416,1764867043406,-177.379632,0.00031999,14]
[396243417,1764867043415,-151.0,0.00031999,31]
[396243418,1764867043425,-152.940986,0.00031999,31]
[396243419,1764867043435,-500.0,0.00031999,30]
[396243420,1764867043444,-500.0,0.00031999,30]
[396243421,1764867043454,-500.0,0.00031999,30]
[396243422,1764867043464,-161.50640593,0.00031999,2]
[396243423,1764867043474,-385.23123697,0.00031999,2]
[396243424,1764867043483,-500.0,0.00031999,2]
[396243425,1764867043493,-500.0,0.00031999,2]
[396243426,1764867043503,-643.61494458,0.00031999,2]
[396243427,1764867043512,-150.0,0.00032,7]
[396243428,1764867043522,-150.0,0.00032,7]
[396243429,1764867043532,-150.0,0.00032,7]
[396243430,1764867043542,-1400093.10405364,0.00032,2]
[396243431,1764867043555,-83137.53569315,0.00032,2]
[396243432,1764867043596,-43474.5153999,0.00032,2]
[396243433,1764867043607,-48140.71816965,0.00032,2]
[396243434,1764867043618,-707.12359549,0.00032,2]
[396243435,1764867043630,-1201.2,0.00032,2]
[396243436,1764867043642,-5035.73329152,0.00032,2]
[396243444,1764867045263,-1819.95814,0.00032,2]
[396243446,1764867045542,-453.0,0.00032,2]
[396243450,1764867046452,-1010.03695427,0.00024898,2]
[396243451,1764867046462,-1010.03695427,0.00024898,2]
[396243452,1764867046471,-1010.03695427,0.00024898,2]
[396243453,1764867046481,-1010.03695427,0.00024898,2]
[396243454,1764867046490,-1010.03695427,0.00024898,2]
[396243455,1764867046500,-1010.03695427,0.00024898,2]
[396243456,1764867046509,-1010.03695427,0.00024898,2]
[396243457,1764867046519,-1010.03695427,0.00024898,2]
[396243458,1764867046528,-1010.03695427,0.00024898,2]
[396243459,1764867046538,-1010.03695427,0.00024898,2]
[396243460,1764867046548,-1010.03695427,0.00024898,2]
[396243461,1764867046558,-1010.03695427,0.00024898,2]
[396243462,1764867046567,-1010.03695427,0.00024898,2]
[396243463,1764867046576,-1010.03695427,0.00024898,2]
[396243464,1764867046586,-1010.03695427,0.00024898,2]
[396243465,1764867046595,-1010.03695427,0.00024898,2]
[396243466,1764867046605,-1010.03695427,0.00024898,2]
[396243467,1764867046615,-1010.03695427,0.00024898,2]
[396243468,1764867046624,-1010.03695427,0.00024898,2]
[396243469,1764867046635,-732287.52599365,0.00032,2]
[396243470,1764867046647,-51015.78194435,0.00032,2]
[396243471,1764867046914,-1010.03695427,0.00024898,2]
[396243472,1764867046925,-1010.03695427,0.00024898,2]
[396243473,1764867046935,-1010.03695427,0.00024898,2]
[396243474,1764867046946,-1010.03695427,0.00024898,2]
[396243475,1764867046955,-1010.03695427,0.00024898,2]
[396243476,1764867046967,-1010.03695427,0.00024898,2]
[396243477,1764867046976,-187017.99823763,0.00032,2]
[396243478,1764867047230,-1010.03695427,0.00024898,2]
[396243479,1764867047240,-424620.984907,0.00032,2]
[396243495,1764868231875,-179.94186937,0.00016464,2]
[396243496,1764868231885,-614.92610372,0.00016464,2]
[396243498,1764868231943,-378.39989628,0.00016464,2]
[396243499,1764868231954,-162.52117379,0.00016699,2]
[396243500,1764868231969,-300.0,0.00016699,2]
[396243501,1764868231979,-219.21129071,0.000167,2]
[396243502,1764868231989,-468.92089066,0.000167,2]
[396243503,1764868232000,-31.07910934,0.000167,2]
[396243504,1764868232011,-500.0,0.000167,2]
[396243505,1764868232021,-500.0,0.000167,2]
[396243506,1764868232031,-493.80145608,0.000167,2]
[396243507,1764868232040,-1000.0,0.000167,2]
[396243508,1764868232050,-691.9788955,0.000167,2]
[396243509,1764868232062,-3383.6059045,0.000167,2]
[396243510,1764868232071,-315.6,0.000167,2]
[396243511,1764868232081,-377.50508034,0.000167,2]
[396243512,1764868232091,-9589.03038323,0.000167,2]
[396243513,1764868232123,-533.50666572,0.000167,2]
[396243514,1764868232180,-405.95789884,0.000167,2]
[396243656,1764868238141,-1000.0,0.000167,2]
[396243657,1764868238229,-1208.19107298,0.000167,2]
[396243658,1764868238241,-297.88385783,0.000167,2]
[396243659,1764868238254,-402.91076196,0.000167,2]
[396243671,1764868238430,-257.14460464,0.000167,2]
[396243686,1764868240493,-1778.83686465,0.000167,2]
[396243687,1764868240505,-260.43699977,0.000167,2]
[396243688,1764868240573,-1847.72,0.000167,2]
[396243689,1764868240695,-1595.93360245,0.000167,2]
[396243690,1764868240709,-421273.67650409,0.000167,2]
[396243691,1764868240721,-319548.77078384,0.000167,2]
[396243692,1764868240730,-2500.0,0.000167,2]
[396243693,1764868240739,-8613.06467827,0.00016799,2]
[396243694,1764868240749,-33414.4842,0.000168,2]
[396243695,1764868240759,-1000.0,0.000168,2]
[396243696,1764868240768,-500.0,0.00016899,2]
[396243697,1764868240777,-315.6,0.00016974,2]
[396243698,1764868240786,-315.6,0.00017248,2]
[396243699,1764868240795,-315.6,0.00017522,2]
[396243700,1764868240805,-315.63,0.00017796,2]
[396243701,1764868240815,-420.0,0.00018245,2]
[396243702,1764868240824,-377.50508026,0.00018389,2]
[396243703,1764868240833,-480.06109419,0.00018777,2]
[396243704,1764868240842,-162.52117377,0.00019198,2]
[396243705,1764868240852,-2565.48550031,0.00019213,2]
[396243706,1764868240861,-6865.42,0.00019459,2]
[396243707,1764868240871,-587.0,0.00019933,2]
[396243708,1764868240881,-4715.80278831,0.0002,2]
[396243709,1764868240890,-377.50508026,0.00020078,2]
[396243710,1764868240899,-219.21129069,0.0002027,2]
[396243711,1764868240909,-166.66,0.0002042,2]
[396243712,1764868240919,-166.66,0.0002085,2]
[396243713,1764868240929,-514.07,0.00021136,2]
[396243714,1764868240939,-166.66,0.00021279,2]
[396243715,1764868240948,-5310.0,0.00021325,2]
[396243716,1764868240957,-610.0,0.00021359,2]
[396243717,1764868240967,-1259.0,0.00021359,2]
[396243718,1764868240976,-253.0,0.00021359,2]
[396243719,1764868240985,-4213.494,0.00021359,2]
[396243720,1764868240994,-1194.0,0.00021359,2]
[396243721,1764868241003,-162.52117377,0.00021697,4]
[396243722,1764868241013,-166.66,0.00021709,2]
[396243723,1764868241022,-299.99,0.00021757,7]
[396243724,1764868241031,-377.50508026,0.00021767,2]
[396243725,1764868241040,-647.0,0.00021778,2]
[396243726,1764868241050,-241.25,0.00022007,2]
[396243727,1764868241059,-166.66,0.00022139,30]
[396243728,1764868241068,-150.0,0.00022327,2]
[396243729,1764868241078,-150.0,0.000224,14]
[396243730,1764868241087,-166.66,0.00022569,30]
[396243731,1764868241098,-377.50508026,0.00023456,2]
[396243732,1764868241108,-514.07,0.00023778,2]
[396243733,1764868241117,-219.21129069,0.0002384,2]
[396243734,1764868241126,-150.0,0.00024105,2]
[396243735,1764868241136,-162.52117377,0.00024197,7]
[396243736,1764868241145,-711.0,0.000243,5]
[396243737,1764868241155,-610.0,0.00024359,2]
[396243738,1764868241164,-1259.0,0.00024359,2]
[396243739,1764868241175,-253.0,0.00024359,2]
[396243740,1764868241186,-1194.0,0.00024359,2]
[396243741,1764868241196,-356.82,0.00024733,2]
[396243742,1764868241207,-671.39824189,0.0002479,2]
[396243743,1764868241220,-103479.95541,0.000248,3]
[396243744,1764868241229,-614.59319677,0.00024842,2]
[396243745,1764868241238,-6517.0,0.00024899,2]
[396243746,1764868241247,-9163.49710392,0.000249,3]
[396243747,1764868241257,-275.87007617,0.000249,2]
[396243748,1764868241267,-500.0,0.00025,30]
[396243749,1764868241276,-377.50508026,0.00025144,2]
[396243750,1764868241284,-150.0,0.00025685,2]
[396243751,1764868241296,-150.0,0.00025685,2]
[396243752,1764868241305,-150.0,0.00025685,2]
[396243753,1764868241315,-500.0,0.00025685,2]
[396243754,1764868241323,-150.0,0.00025685,2]
[396243755,1764868241332,-150.0,0.00025685,2]
[396243756,1764868241342,-150.0,0.00025685,2]
[396243757,1764868241351,-150.0,0.00025685,2]
[396243758,1764868241360,-240.0,0.00025685,2]
[396243759,1764868241369,-763.62475866,0.00025746,3]
[396243760,1764868241378,-1000.0,0.00025766,2]
[396243761,1764868241388,-1000.0,0.00025766,2]
[396243762,1764868241397,-1000.0,0.00025766,2]
[396243763,1764868241407,-1000.0,0.00025766,2]
[396243764,1764868241416,-1000.0,0.00025766,2]
[396243765,1764868241425,-1000.0,0.00025766,2]
[396243766,1764868241434,-500.0,0.00025766,2]
[396243767,1764868241444,-1000.0,0.00025766,2]
[396243768,1764868241453,-500.0,0.00025766,2]
[396243769,1764868241462,-1000.0,0.00025766,2]
[396243770,1764868241472,-500.0,0.00025766,2]
[396243771,1764868241482,-1000.0,0.00025766,2]
[396243772,1764868241491,-500.0,0.00025766,2]
[396243773,1764868241500,-1000.0,0.00025766,2]
[396243774,1764868241510,-500.0,0.00025766,2]
[396243775,1764868241519,-1000.0,0.00025766,2]
[396243776,1764868241528,-500.0,0.00025766,2]
[396243777,1764868241537,-500.0,0.00025766,2]
[396243778,1764868241546,-500.0,0.00025766,2]
[396243779,1764868241555,-500.0,0.00025766,2]
[396243780,1764868241565,-500.0,0.00025766,2]
[396243781,1764868241575,-277.35679052,0.00025766,2]
[396243782,1764868241585,-500.0,0.00025766,2]
[396243783,1764868241594,-150.0,0.00025822,2]
[396243784,1764868241603,-150.0,0.00025822,2]
[396243785,1764868241612,-150.0,0.00025822,2]
[396243786,1764868241621,-500.0,0.00025822,2]
[396243787,1764868241631,-200.0,0.00025822,2]
[396243788,1764868241640,-150.0,0.00025822,2]
[396243789,1764868241650,-200.0,0.00025959,2]
[396243790,1764868241659,-200.0,0.00025959,2]
[396243791,1764868241669,-200.0,0.00025959,2]
[396243792,1764868241678,-500.0,0.00025959,2]
[396243793,1764868241687,-170.0,0.00025959,2]
[396243794,1764868241696,-500.0,0.00026096,2]
[396243795,1764868241710,-7654.34,0.00026222,2]
[396243796,1764868241719,-500.0,0.00026233,2]
[396243797,1764868241729,-500.0,0.0002637,2]
[396243798,1764868241738,-514.07,0.0002642,120]
[396243799,1764868241748,-350.0,0.00026507,2]
[396243800,1764868241757,-162.52117377,0.00026696,11]
[396243801,1764868241767,-150.0,0.00026696,11]
[396243802,1764868241776,-500.0,0.00026696,11]
[396243803,1764868241786,-500.0,0.00026696,11]
[396243804,1764868241795,-500.0,0.00026696,11]
[396243805,1764868241804,-763.62475866,0.00026823,3]
[396243806,1764868241814,-150.0,0.00026833,11]
[396243807,1764868241823,-500.0,0.00026833,11]
[396243808,1764868241832,-500.0,0.00026833,11]
[396243809,1764868241841,-500.0,0.00026833,11]
[396243810,1764868241850,-377.50508026,0.00026833,2]
[396243811,1764868241860,-1971.06,0.00026877,2]
[396243812,1764868241870,-200.0,0.0002697,11]
[396243813,1764868241879,-500.0,0.0002697,11]
[396243814,1764868241889,-500.0,0.0002697,11]
[396243815,1764868241898,-500.0,0.0002697,11]
[396243816,1764868241907,-500.0,0.00027107,11]
[396243817,1764868241917,-350.0,0.00027107,11]
[396243818,1764868241926,-500.0,0.00027107,11]
[396243819,1764868241936,-287.61899177,0.00027135,2]
[396243820,1764868241946,-250.0,0.0002717,2]
[396243821,1764868241955,-200.0,0.00027244,11]
[396243822,1764868241965,-500.0,0.00027244,11]
[396243823,1764868241974,-610.0,0.00027359,2]
[396243824,1764868241984,-1253.982,0.00027359,2]
[396243825,1764868241993,-500.0,0.00027381,11]
[396243826,1764868242002,-150.0,0.00027397,5]
[396243827,1764868242012,-219.21129069,0.0002741,2]
[396243828,1764868242021,-500.0,0.00027518,11]
[396243829,1764868242031,-1000.0,0.00027589,2]
[396243830,1764868242041,-614.59319676,0.0002765,2]
[396243831,1764868242050,-350.0,0.00027655,11]
[396243832,1764868242059,-1868.35,0.00027659,2]
[396243833,1764868242070,-250.0,0.00027945,5]
[396243834,1764868242079,-356.82,0.00028158,2]
[396243835,1764868242089,-763.62475866,0.00028198,3]
[396243836,1764868242098,-350.0,0.00028493,5]
[396243837,1764868242108,-298.26089446,0.00028504,2]
[396243838,1764868242348,-193.69173255,0.00028522,2]
[396243839,1764868242369,-377.50508026,0.00028522,2]
[396243840,1764868242379,-150.0,0.000288,4]
[396243841,1764868242389,-150.0,0.000288,4]
[396243842,1764868242399,-150.0,0.000288,4]
[396243843,1764868242408,-547.09695169,0.00029041,5]
[396243844,1764868242418,-514.07,0.00029062,120]
[396243845,1764868242427,-162.52117377,0.00029195,14]
[396243846,1764868242436,-2000.0,0.000293,2]
[396243847,1764868242447,-1000.0,0.000293,2]
[396243848,1764868242456,-1000.0,0.000296,2]
[396243849,1764868242465,-309.29654756,0.00029873,2]
[396243850,1764868242474,-150.0,0.0003,2]
[396243851,1764868242483,-193.69173255,0.00030211,2]
[396243852,1764868242492,-377.50508026,0.00030211,2]
[396243853,1764868242501,-500.0,0.00030356,14]
[396243854,1764868242510,-500.0,0.00030356,14]
[396243855,1764868242520,-150.0,0.000304,7]
[396243856,1764868242529,-1000.0,0.000304,2]
[396243857,1764868242539,-614.59319676,0.00030459,2]
[396243858,1764868242548,-219.21129069,0.0003098,2]
[396243859,1764868242558,-150.0,0.00031,4]
[396243860,1764868242567,-763.62475866,0.00031028,3]
[396243861,1764868242576,-1000.0,0.00031038,2]
[396243862,1764868242586,-950.35793141,0.0003104,2]
[396243863,1764868242596,-500.0,0.00031178,14]
[396243864,1764868242605,-1000.0,0.000312,2]
[396243865,1764868242614,-2429.7,0.00031233,2]
[396243866,1764868242623,-1214.85,0.00031233,2]
[396243867,1764868242633,-1214.85,0.00031233,2]
[396243868,1764868242642,-1214.85,0.00031233,2]
[396243869,1764868242651,-2494.06,0.00031233,2]
[396243870,1764868242660,-1214.34,0.00031233,2]
[396243871,1764868242670,-1651.49,0.00031233,2]
[396243872,1764868242679,-6865.42,0.0003124,2]
[396243873,1764868242688,-320.74051982,0.00031242,2]
[396243875,1764868242698,-179.54,0.000313,14]
[396243877,1764868242707,-168.0,0.00031514,2]
[396243879,1764868242717,-356.82,0.00031582,2]
[396243881,1764868242726,-1000.0,0.00031613,2]
[396243883,1764868242737,-162.52117377,0.00031694,18]
[396243885,1764868242748,-514.07,0.00031704,120]
[396243887,1764868242757,-4566.66,0.00031706,2]
[396243889,1764868242767,-200.0,0.00031744,2]
[396243891,1764868242776,-763.62475866,0.00031877,3]
[396243893,1764868242786,-1000.0,0.00031887,2]
[396243895,1764868242795,-10000.0,0.000319,2]
[396243897,1764868242804,-797.666,0.000319,120]
[396243899,1764868242813,-193.69173255,0.000319,2]
[396243901,1764868242822,-16424.05453541,0.000319,2]
[396243903,1764868242832,-377.50508026,0.000319,2]
[396243904,1764868242841,-187.00013486,0.000319,2]
[396243905,1764868242850,-1494.1315996,0.000319,2]
[396243906,1764868242860,-4483.3217809,0.00031938,2]
[396243907,1764868242870,-2055.0541279,0.00031938,2]
[396243908,1764868242879,-1557.5106589,0.00031938,2]
[396243909,1764868242888,-173.68261736,0.0003199,2]
[396243910,1764868242897,-173.68261736,0.0003199,2]
[396243911,1764868242907,-150.83,0.0003199,2]
[396243912,1764868242916,-150.83,0.0003199,2]
[396243913,1764868242925,-150.83,0.0003199,2]
[396243914,1764868242934,-150.83,0.0003199,2]
[396243915,1764868242944,-150.83,0.0003199,2]
[396243916,1764868242954,-151.0,0.00031997,7]
[396243917,1764868242964,-150.0,0.00031999,20]
[396243918,1764868242974,-150.0,0.00032,7]
[396243919,1764868242984,-150.0,0.00032,7]
[396243920,1764868242993,-926864.68570473,0.00032,2]
[396243921,1764868243004,-172810.40871205,0.00032,2]
[396243922,1764868243058,-4733.18646971,0.00032,2]
[396243932,1764868246385,-4624.95,0.000167,2]
[396243933,1764868363018,156.059323,8.995e-05,2]